bitfinex/quotes_SOLUSD_20250209
["timestamp","ask_amount","ask_price","bid_price","bid_amount"]
[1739079724252,5.39257588,207.04,207.03,0.063]
[1739079725365,8.77347588,207.04,207.03,0.063]
[1739079727056,5.39257588,207.05,207.03,0.063]
[1739079727671,5.39257588,207.04,207.03,0.063]
[1739079729173,8.77347588,207.04,207.03,0.063]
[1739079734080,5.39257588,207.04,207.03,0.063]
[1739079736875,8.77347588,207.04,207.03,0.063]
[1739079740477,8.89896588,207.04,207.03,0.063]
[1739079741376,9.02445588,207.04,207.03,0.063]
[1739079747583,9.02445588,207.04,207.03,0.0001]
[1739079747993,24.43630441,207.04,207.03,0.0001]
[1739079748167,25.62883127,207.04,207.03,0.0001]
[1739079754095,11.21698274,207.04,207.03,0.0001]
[1739079754304,9.02445588,207.04,207.03,0.0001]
[1739079758709,9.05445588,207.04,207.03,0.0001]
[1739079777943,8.92896588,207.04,207.03,0.0001]
[1739079785648,0.03,207.04,207.03,5.39267588]
[1739079786767,0.03,207.04,207.03,0.0001]
[1739079787238,3.4109,207.04,207.03,0.0001]
[1739079787866,0.03,207.04,207.03,0.0001]
[1739079814494,0.03,207.04,207.03,5.39267588]
[1739079824402,0.03,207.04,207.03,22.18562441]
[1739079825611,0.03,207.04,207.03,8.77377588]
[1739079825789,0.03,207.04,207.03,144.57377588]
[1739079826107,0.03,207.04,207.03,157.98562441]
[1739079835518,0.03,207.04,207.03,22.18562441]
[1739079838507,0.03,207.04,207.03,22.90995206]
[1739079842822,0.03,207.04,207.03,0.0001]
[1739079844917,3.4109,207.04,207.03,0.0001]
[1739079846021,0.03,207.04,207.03,0.0001]
[1739079846327,0.03,207.04,207.03,5.39267588]
[1739079846711,0.03,207.04,207.03,18.80452441]
[1739079846912,0.03,207.04,207.03,22.18562441]
[1739079849729,0.03,207.04,207.03,158.11111441]
[1739079850109,0.03,207.04,207.03,159.84630441]
[1739079850310,0.03,207.1,207.07,20.12549]
[1739079850511,0.03,207.1,207.09,5.39257588]
[1739079850713,0.03,207.1,207.09,18.80442441]
[1739079851708,0.03,207.1,207.09,5.39257588]
[1739079852840,0.03,207.1,207.08,8.97257588]
[1739079853134,0.03,207.1,207.09,5.39257588]
[1739079853841,0.03,207.1,207.09,18.80442441]
[1739079854330,0.03,207.1,207.09,22.18452441]
[1739079857133,0.03,207.1,207.09,22.31001441]
[1739079859551,0.03,207.1,207.09,22.18452441]
[1739079864436,0.03,207.1,207.09,23.03412602]
[1739079868242,0.03,207.1,207.09,241.83412602]
[1739079868541,0.03,207.1,207.09,241.11001441]
[1739079869344,178.99098293,207.16,207.1,13.66282853]
[1739079869547,0.23,207.25,207.24,1.0]
[1739079869726,0.03,207.3,207.29,21.0]
[1739079870039,5.0,207.33,207.29,140.10331238]
[1739079870221,5.0,207.33,207.29,139.38]
[1739079870414,5.0,207.33,207.32,33.41184853]
[1739079870624,5.0,207.33,207.32,170.18608432]
[1739079870820,5.0,207.33,207.32,169.46282853]
[1739079871253,5.0,207.33,207.32,141.19257588]
[1739079871552,3.77821073,207.34,207.33,14.66282853]
[1739079871839,27.32827563,207.35,207.34,14.66282853]
[1739079872041,226.37319893,207.41,207.39,13.66282853]
[1739079872252,196.12158359,207.41,207.39,150.18584986]
[1739079872418,196.12158359,207.41,207.39,149.46282853]
[1739079872419,173.61687833,207.41,207.39,149.46282853]
[1739079872615,141.82124008,207.41,207.4,30.39032467]
[1739079872843,141.82124008,207.41,207.4,21.9010866]
[1739079873341,141.82124008,207.41,207.4,30.39032467]
[1739079873744,0.1602,207.43,207.4,8.36374807]
[1739079873943,0.1602,207.43,207.41,25.6265766]
[1739079874241,0.1602,207.43,207.41,25.3755966]
[1739079874419,6.82387304,207.42,207.34,8.36374807]
[1739079874621,8.36374807,207.41,207.34,8.36374807]
[1739079874821,8.36374807,207.4,207.33,8.36374807]
[1739079875020,10.19867304,207.42,207.34,8.36374807]
[1739079875323,8.36374807,207.41,207.35,13.41184853]
[1739079875523,8.36374807,207.4,207.35,13.41184853]
[1739079876144,8.36374807,207.41,207.35,13.41184853]
[1739079877529,8.36374807,207.4,207.35,13.41184853]
[1739079878527,8.36374807,207.41,207.35,13.41184853]
[1739079879148,8.36374807,207.39,207.32,8.36374807]
[1739079879527,8.36374807,207.39,207.33,13.41184853]
[1739079879937,8.36374807,207.4,207.35,13.41184853]
[1739079880255,8.36374807,207.41,207.35,13.41184853]
[1739079880435,8.36374807,207.4,207.35,13.41184853]
[1739079881051,8.36374807,207.41,207.35,13.41184853]
[1739079881453,10.19867304,207.42,207.36,8.36374807]
[1739079881640,10.19867304,207.42,207.37,13.41184853]
[1739079882559,10.19867304,207.42,207.36,8.36374807]
[1739079882560,0.26767304,207.42,207.41,8.36374807]
[1739079882729,0.26767304,207.42,207.41,13.41184853]
[1739079883257,0.26767304,207.42,207.39,8.36374807]
[1739079883426,0.26767304,207.42,207.38,135.8]
[1739079883623,8.36374807,207.46,207.39,13.41184853]
[1739079884353,8.36374807,207.44,207.38,135.8]
[1739079885258,3.3746,207.43,207.38,135.8]
[1739079885458,8.36374807,207.4,207.38,135.8]
[1739079886049,8.36374807,207.4,207.35,13.41184853]
[1739079886232,3.3746,207.43,207.32,139.523]
[1739079886233,8.36374807,207.39,207.32,139.523]
[1739079886557,8.36374807,207.37,207.32,0.063]
[1739079886753,11.73934807,207.37,207.32,0.063]
[1739079886938,3.3756,207.37,207.32,0.063]
[1739079887256,3.3754,207.39,207.33,9.08708827]
[1739079887667,3.3754,207.39,207.33,8.36374807]
[1739079887874,3.3754,207.39,207.32,8.55223807]
[1739079889158,3.3754,207.39,207.32,0.18849]
[1739079889462,8.36374807,207.38,207.32,0.063]
[1739079889955,8.36374807,207.37,207.32,0.063]
[1739079890160,8.36374807,207.36,207.32,0.063]
[1739079890540,3.3759,207.35,207.32,0.063]
[1739079891963,11.73964807,207.35,207.32,0.063]
[1739079892451,8.36374807,207.33,207.32,0.063]
[1739079894246,11.73994807,207.33,207.32,0.063]
[1739079896946,8.36374807,207.35,207.32,0.063]
[1739079897152,1.5634,207.38,207.33,13.41184853]
[1739079897360,8.36374807,207.37,207.32,0.063]
[1739079897964,11.73934807,207.37,207.32,0.063]
[1739079898143,8.36374807,207.35,207.32,0.063]
[1739079898465,8.36374807,207.34,207.32,0.063]
[1739079898965,8.36374807,207.33,207.32,0.063]
[1739079899968,11.73994807,207.33,207.32,0.063]
[1739079900163,3.3762,207.33,207.32,0.063]
[1739079900769,8.36374807,207.34,207.32,0.063]
[1739079900967,8.36374807,207.36,207.32,0.063]
[1739079901168,13.30254807,207.38,207.32,0.063]
[1739079901354,8.36374807,207.37,207.32,0.063]
[1739079901550,8.36374807,207.36,207.32,0.063]
[1739079901849,8.36374807,207.37,207.32,0.18849]
[1739079902173,8.36374807,207.41,207.35,13.41184853]
[1739079903163,8.36374807,207.39,207.33,135.8]
[1739079903372,8.36374807,207.36,207.32,0.063]
[1739079903561,8.36374807,207.35,207.32,0.063]
[1739079903765,8.36374807,207.33,207.32,0.063]
[1739079904070,11.73994807,207.33,207.32,0.063]
[1739079907570,8.36374807,207.35,207.32,0.063]
[1739079908576,8.36374807,207.34,207.32,0.063]
[1739079909277,8.36374807,207.35,207.32,0.063]
[1739079909775,11.73964807,207.35,207.32,0.063]
[1739079909977,8.36374807,207.34,207.32,0.063]
[1739079910362,8.36374807,207.35,207.32,0.063]
[1739079911250,8.36374807,207.36,207.32,0.063]
[1739079911452,8.36374807,207.39,207.33,13.41184853]
[1739079912068,8.36374807,207.38,207.33,13.41184853]
[1739079912580,8.36374807,207.37,207.32,0.063]
[1739079912784,0.03,207.42,207.32,0.063]
[1739079912785,8.36374807,207.36,207.32,0.063]
[1739079915462,8.36374807,207.35,207.32,0.063]
[1739079916592,8.36374807,207.38,207.32,0.063]
[1739079916992,8.36374807,207.39,207.33,0.72334056]
[1739079917487,8.36374807,207.38,207.33,0.72334056]
[1739079918697,8.36374807,207.4,207.35,13.41184853]
[1739079919663,8.36374807,207.4,207.33,0.72334056]
[1739079919859,8.36374807,207.39,207.32,3.4393]
[1739079920781,8.36374807,207.39,207.32,0.063]
[1739079920969,8.36374807,207.38,207.32,0.063]
[1739079921171,8.36374807,207.38,207.33,0.72334289]
[1739079921669,8.36374807,207.38,207.32,14.19814806]
[1739079921871,8.36374807,207.38,207.33,0.12549]
[1739079922064,8.36374807,207.4,207.35,13.41184853]
[1739079923690,8.36374807,207.41,207.35,13.41184853]
[1739079923891,0.03,207.42,207.38,13.41184853]
[1739079924097,0.03,207.42,207.39,9.08677286]
[1739079924262,0.03,207.42,207.4,13.41184853]
[1739079924691,0.03,207.42,207.41,0.72301022]
[1739079925074,0.03,207.42,207.41,14.13485875]
[1739079925784,0.03,207.42,207.41,13.41184853]
[1739079926289,0.03,207.42,207.37,12.46229744]
[1739079926462,0.03,207.42,207.39,0.72304937]
[1739079926665,0.03,207.42,207.4,13.41184853]
[1739079928173,0.03,207.42,207.36,147.90923807]
[1739079928375,0.03,207.42,207.36,139.54549]
[1739079928575,8.36374807,207.39,207.36,3.62]
[1739079928769,8.36374807,207.38,207.36,3.62]
[1739079929196,8.36374807,207.39,207.36,3.62]
[1739079929369,8.36374807,207.38,207.36,3.62]
[1739079930094,8.36374807,207.39,207.36,3.62]
[1739079930807,8.36374807,207.38,207.36,3.62]
[1739079931270,8.36374807,207.37,207.36,3.62]
[1739079931469,8.36374807,207.37,207.32,13.47484853]
[1739079931674,8.36374807,207.34,207.32,0.063]
[1739079931869,8.36374807,207.4,207.32,0.063]
[1739079931870,8.36374807,207.33,207.32,0.063]
[1739079937905,20.07813807,207.33,207.32,0.063]
[1739079938206,8.36374807,207.28,207.2,9.08726771]
[1739079938407,8.36374807,207.28,207.21,21.9010866]
[1739079938698,8.36374807,207.29,207.23,0.12549]
[1739079939100,8.36374807,207.29,207.22,9.0873725]
[1739079939604,8.36374807,207.28,207.22,0.72362443]
[1739079939909,8.36374807,207.28,207.22,0.72369062]
[1739079940206,8.36374807,207.28,207.23,13.41184853]
[1739079940398,8.36374807,207.32,207.26,13.41184853]
[1739079941494,11.74014807,207.32,207.26,13.41184853]
[1739079942107,8.36374807,207.32,207.26,13.41184853]
[1739079942906,8.36374807,207.34,207.28,13.41184853]
[1739079943209,8.36374807,207.36,207.29,29.08719898]
[1739079943389,8.36374807,207.35,207.29,0.72345091]
[1739079943585,8.36374807,207.35,207.29,13.41184853]
[1739079943998,8.36374807,207.33,207.29,20.0]
[1739079944400,8.36374807,207.32,207.29,20.0]
[1739079944591,8.36374807,207.31,207.26,135.8]
[1739079944803,8.36374807,207.31,207.26,135.863]
[1739079945384,8.36374807,207.3,207.26,135.863]
[1739079945684,8.36374807,207.31,207.26,135.863]
[1739079945883,8.36374807,207.32,207.26,135.863]
[1739079946908,8.439,207.37,207.26,135.863]
[1739079946909,8.36374807,207.31,207.26,135.863]
[1739079947106,8.36374807,207.28,207.26,0.063]
[1739079947314,8.36374807,207.27,207.26,0.063]
[1739079948987,11.74094807,207.27,207.26,0.063]
[1739079949489,8.36374807,207.29,207.26,0.063]
[1739079950099,8.36374807,207.33,207.26,8.42674807]
[1739079950485,8.36374807,207.38,207.32,13.41184853]
[1739079950684,8.36374807,207.39,207.32,21.7755966]
[1739079951205,4.9905,207.41,207.32,16.78824853]
[1739079951206,8.36374807,207.38,207.32,16.78824853]
[1739079952917,8.36374807,207.38,207.31,9.08705005]
[1739079953142,8.36374807,207.36,207.3,7.0366]
[1739079953493,8.36374807,207.36,207.3,3.66]
[1739079953692,3.3753,207.39,207.3,3.66]
[1739079953693,8.36374807,207.35,207.3,3.66]
[1739079954413,8.36374807,207.4,207.33,8.36374807]
[1739079955391,0.03,207.42,207.36,13.41184853]
[1739079955597,0.03,207.42,207.37,8.36374807]
[1739079956497,0.03,207.42,207.36,14.13498514]
[1739079956498,0.03,207.42,207.38,9.08690773]
[1739079956708,0.03,207.42,207.39,8.36374807]
[1739079957429,0.03,207.42,207.4,13.53733853]
[1739079957608,0.03,207.42,207.41,21.7755966]
[1739079958333,0.03,207.42,207.4,11.73884807]
[1739079958517,0.03,207.42,207.39,8.36374807]
[1739079959638,0.03,207.42,207.38,137.3392]
[1739079959839,0.03,207.42,207.38,135.8]
[1739079960435,0.03,207.42,207.39,13.41184853]
[1739079963746,0.03,207.42,207.39,21.7755966]
[1739079963945,0.03,207.42,207.41,13.53733853]
[1739079964251,0.03,207.42,207.39,31.73894807]
[1739079964411,0.03,207.42,207.4,13.41184853]
[1739079964845,0.03,207.42,207.39,20.0]
[1739079965036,0.03,207.42,207.37,4.09856968]
[1739079966451,0.03,207.42,207.37,12.46251827]
[1739079966743,0.03,207.42,207.38,22.0265766]
[1739079966917,0.03,207.42,207.39,9.08678008]
[1739079968038,0.03,207.42,207.4,8.61472807]
[1739079968245,0.03,207.42,207.41,16.91223853]
[1739079968737,0.03,207.42,207.41,17.03772853]
[1739079969140,0.03,207.42,207.41,16.91223853]
[1739079970153,0.03,207.42,207.41,17.03772853]
[1739079970362,0.03,207.43,207.42,14.66282853]
[1739079970652,8.36374807,207.53,207.46,13.66282853]
[1739079971235,8.39374807,207.54,207.46,22.0265766]
[1739079971649,8.36374807,207.53,207.46,25.4004766]
[1739079971856,8.36374807,207.52,207.46,17.03672853]
[1739079972669,8.36374807,207.5,207.46,13.53733853]
[1739079973545,8.36374807,207.5,207.45,155.8]
[1739079974045,8.36374807,207.5,207.46,13.41184853]
[1739079975040,11.73724807,207.5,207.45,155.8]
[1739079975259,11.73724807,207.5,207.45,20.0]
[1739079975564,8.36374807,207.48,207.43,13.41184853]
[1739079975765,8.36374807,207.48,207.42,83.12549]
[1739079975766,8.36374807,207.45,207.42,3.64]
[1739079976145,8.36374807,207.45,207.41,20.0]
[1739079976471,8.36374807,207.45,207.41,13.41184853]
[1739079976649,8.36374807,207.46,207.41,13.41184853]
[1739079977962,8.36374807,207.47,207.41,13.41184853]
[1739079978154,8.36374807,207.46,207.41,13.41184853]
[1739079978769,189.2191,207.51,207.42,0.12549]
[1739079978770,8.36374807,207.48,207.42,0.12549]
[1739079979272,8.36374807,207.47,207.42,0.12549]
[1739079979673,8.36374807,207.45,207.41,13.41184853]
[1739079979964,8.36374807,207.47,207.41,13.41184853]
[1739079980167,8.36374807,207.47,207.41,16.78674853]
[1739079981263,8.36374807,207.47,207.41,16.84974853]
[1739079981658,8.36374807,207.44,207.41,0.063]
[1739079982146,8.36374807,207.45,207.41,0.063]
[1739079982354,8.36374807,207.46,207.41,0.063]
[1739079983178,0.03,207.47,207.42,0.72304965]
[1739079983473,0.03,207.47,207.43,13.53733853]
[1739079983851,0.03,207.47,207.41,3.4378]
[1739079983852,8.39374807,207.47,207.41,3.4378]
[1739079984046,8.36374807,207.44,207.41,0.063]
[1739079984960,8.36374807,207.43,207.41,0.063]
[1739079985163,8.36374807,207.42,207.41,0.063]
[1739079987955,8.36374807,207.43,207.41,0.063]
[1739079988776,8.36374807,207.42,207.41,0.063]
[1739079991969,8.36374807,207.43,207.41,0.063]
[1739079994277,8.36374807,207.42,207.41,0.063]
[1739079995878,9.91914807,207.42,207.41,0.063]
[1739079996082,13.29384807,207.42,207.41,0.063]
[1739080000575,9.91914807,207.42,207.41,0.063]
[1739080000965,8.36374807,207.42,207.41,0.063]
[1739080001368,11.73844807,207.42,207.41,0.063]
[1739080001571,8.36374807,207.42,207.41,0.063]
[1739080002792,20.22768614,207.42,207.41,0.063]
[1739080002975,28.95358614,207.42,207.41,0.063]
[1739080004795,19.58983807,207.42,207.41,0.063]
[1739080005493,19.46434807,207.42,207.41,0.063]
[1739080005698,11.73844807,207.42,207.41,0.063]
[1739080006084,3.3747,207.42,207.41,0.063]
[1739080006395,8.36374807,207.43,207.41,0.063]
[1739080006396,11.73834807,207.43,207.41,0.063]
[1739080006594,11.76834807,207.43,207.41,0.063]
[1739080006799,8.36374807,207.42,207.41,0.063]
[1739080008899,11.73844807,207.42,207.41,0.063]
[1739080010202,21.35317614,207.42,207.41,0.0001]
[1739080010391,0.25098,207.41,207.32,0.063]
[1739080010592,8.36374807,207.33,207.32,0.063]
[1739080011600,8.36374807,207.34,207.32,0.063]
[1739080012201,3.3759,207.36,207.32,0.063]
[1739080012202,8.36374807,207.35,207.32,0.063]
[1739080012408,8.4369,207.42,207.32,0.063]
[1739080012409,8.36374807,207.37,207.32,0.063]
[1739080015509,8.36374807,207.38,207.32,0.063]
[1739080016717,8.36374807,207.37,207.32,0.063]
[1739080018517,8.4369,207.42,207.32,0.063]
[1739080018819,8.36374807,207.38,207.32,0.063]
[1739080020895,8.36374807,207.36,207.32,0.063]
[1739080022116,8.36374807,207.35,207.32,0.063]
[1739080022302,8.36374807,207.33,207.32,0.063]
[1739080022695,8.36374807,207.34,207.32,0.063]
[1739080023205,8.36374807,207.35,207.32,0.063]
[1739080023512,8.36374807,207.36,207.32,0.063]
[1739080026397,8.36374807,207.35,207.32,0.063]
[1739080027526,8.36374807,207.36,207.32,0.063]
[1739080027821,8.36374807,207.41,207.34,8.36374807]
[1739080028018,8.36374807,207.4,207.33,8.36374807]
[1739080028323,8.36374807,207.4,207.32,21.8385966]
[1739080029015,8.36374807,207.39,207.32,21.8385966]
[1739080029319,8.36374807,207.39,207.32,25.2149966]
[1739080031209,11.73884807,207.4,207.33,8.36374807]
[1739080032117,3.3751,207.4,207.34,8.36374807]
[1739080032316,11.73884807,207.4,207.33,8.36374807]
[1739080032527,8.36374807,207.38,207.32,0.063]
[1739080033039,8.36374807,207.39,207.32,21.8385966]
[1739080033318,11.73884807,207.4,207.33,8.36374807]
[1739080033516,0.03,207.41,207.35,8.36374807]
[1739080034096,8.39374807,207.41,207.35,33.41184853]
[1739080034306,8.39374807,207.41,207.35,13.41184853]
[1739080037032,8.39374807,207.41,207.35,16.78774853]
[1739080038027,0.03,207.41,207.39,8.36374807]
[1739080038231,0.03,207.41,207.4,21.7755966]
[1739080038629,0.03,207.41,207.4,18.76775939]
[1739080038835,0.03,207.41,207.4,20.0]
[1739080039255,0.03,207.41,207.4,34.13492341]
[1739080039633,0.03,207.41,207.4,39.49083427]
[1739080039833,0.03,207.41,207.38,4.30301096]
[1739080040132,0.03,207.41,207.38,3.58]
[1739080042537,0.03,207.41,207.38,16.04976334]
[1739080043831,0.03,207.41,207.38,7.67844785]
[1739080044139,0.03,207.41,207.38,3.58]
[1739080044446,8.37131549,207.39,207.34,6.9559]
[1739080044738,8.37131549,207.39,207.34,7.67915999]
[1739080045536,8.37131549,207.39,207.35,13.41184853]
[1739080045836,8.37131549,207.36,207.33,7.50795542]
[1739080046339,8.37131549,207.35,207.33,7.50795542]
[1739080047522,8.37131549,207.35,207.32,0.063]
[1739080047715,8.37131549,207.34,207.32,0.063]
[1739080048026,8.37131549,207.33,207.32,0.063]
[1739080048220,8.37131549,207.34,207.32,0.063]
[1739080050748,8.37131549,207.33,207.32,0.063]
[1739080052227,8.37131549,207.34,207.32,0.063]
[1739080052427,8.37131549,207.35,207.32,0.063]
[1739080052753,1.03,207.41,207.32,0.063]
[1739080052754,8.37131549,207.36,207.32,0.063]
[1739080054835,8.37131549,207.34,207.32,0.063]
[1739080056560,8.37131549,207.35,207.32,0.063]
[1739080057152,8.37131549,207.36,207.32,0.063]
[1739080059153,8.37131549,207.34,207.32,0.063]
[1739080059346,8.37131549,207.35,207.32,0.063]
[1739080059544,8.37131549,207.36,207.32,0.063]
[1739080060145,8.37131549,207.35,207.32,0.063]
[1739080062440,8.37131549,207.36,207.32,0.063]
[1739080062639,5.36195207,207.36,207.32,0.063]
[1739080063662,5.36195207,207.35,207.32,0.063]
[1739080065351,5.36195207,207.36,207.32,0.063]
[1739080066572,5.36195207,207.35,207.32,0.063]
[1739080068368,5.36195207,207.34,207.32,0.063]
[1739080069763,5.36195207,207.33,207.32,0.063]
[1739080071276,5.36195207,207.34,207.32,0.063]
[1739080071453,5.36195207,207.35,207.32,0.063]
[1739080072781,5.36195207,207.34,207.32,0.063]
[1739080073375,5.36195207,207.33,207.32,0.063]
[1739080082984,5.36195207,207.37,207.32,0.063]
[1739080083158,5.36195207,207.42,207.35,5.36195207]
[1739080083461,5.36195207,207.4,207.33,18.7738006]
[1739080084156,5.36195207,207.39,207.32,5.42495207]
[1739080084363,5.36195207,207.36,207.32,0.063]
[1739080084769,5.36195207,207.37,207.32,0.063]
[1739080085687,5.36195207,207.4,207.32,13.47484853]
[1739080085876,5.39195207,207.41,207.35,5.36195207]
[1739080086075,0.03,207.41,207.35,5.36195207]
[1739080086502,0.03,207.41,207.36,5.36195207]
[1739080086659,0.03,207.41,207.37,5.36195207]
[1739080086865,0.03,207.41,207.36,13.41184853]
[1739080086866,0.03,207.41,207.38,5.36195207]
[1739080087188,0.03,207.41,207.37,5.36195207]
[1739080087368,0.03,207.41,207.38,5.36195207]
[1739080089493,0.03,207.41,207.37,8.73745207]
[1739080089784,0.03,207.41,207.38,5.36195207]
[1739080091377,0.03,207.41,207.39,18.7738006]
[1739080092480,0.03,207.41,207.39,13.41184853]
[1739080093301,0.03,207.41,207.39,16.78704853]
[1739080097091,0.03,207.41,207.37,12.31735207]
[1739080097397,0.03,207.41,207.37,6.9554]
[1739080097900,0.03,207.41,207.38,13.41184853]
[1739080099806,0.03,207.41,207.36,6.08511473]
[1739080099807,0.03,207.41,207.36,6.9557]
[1739080100107,0.03,207.41,207.37,13.41184853]
[1739080102411,5.36195207,207.39,207.35,135.8]
[1739080102581,5.36195207,207.38,207.35,135.8]
[1739080103001,5.36195207,207.38,207.33,3.58]
[1739080103196,5.36195207,207.36,207.32,3.643]
[1739080103700,1.5406,207.41,207.32,0.063]
[1739080103701,5.36195207,207.33,207.32,0.063]
[1739080105380,8.73815207,207.33,207.32,0.063]
[1739080107311,5.36195207,207.33,207.32,0.063]
[1739080107616,5.36195207,207.34,207.32,0.063]
[1739080109520,5.36195207,207.35,207.32,0.063]
[1739080109813,5.36195207,207.34,207.32,0.063]
[1739080109988,5.36195207,207.33,207.32,0.063]
[1739080112316,5.36195207,207.34,207.32,0.063]
[1739080115522,5.36195207,207.35,207.32,0.063]
[1739080116321,8.73785207,207.35,207.32,0.063]
[1739080118527,5.36195207,207.34,207.32,0.063]
[1739080119395,5.36195207,207.33,207.32,0.063]
[1739080120597,5.36195207,207.34,207.32,0.063]
[1739080122539,5.36195207,207.33,207.32,0.063]
[1739080124134,5.36195207,207.35,207.32,0.063]
[1739080124435,5.36195207,207.36,207.32,0.063]
[1739080125526,5.36195207,207.37,207.32,0.063]
[1739080127120,5.36195207,207.34,207.32,0.063]
[1739080128243,5.61293207,207.33,207.32,0.063]
[1739080129129,8.98913207,207.33,207.32,0.063]
[1739080129331,0.03,207.41,207.38,0.25098]
[1739080129639,0.03,207.45,207.42,33.41184853]
[1739080129944,0.03,207.45,207.44,18.7738006]
[1739080130622,0.03,207.45,207.42,41.0254454]
[1739080131021,0.03,207.45,207.43,13.41184853]
[1739080131736,0.03,207.45,207.44,5.36195207]
[1739080132319,0.03,207.45,207.42,40.05986762]
[1739080132534,0.03,207.45,207.42,25.36195207]
[1739080133356,0.03,207.45,207.43,5.36195207]
[1739080134145,0.03,207.45,207.42,25.36195207]
[1739080134843,0.03,207.45,207.4,9.02195207]
[1739080135050,0.03,207.45,207.4,3.66]
[1739080135241,0.03,207.45,207.39,18.7738006]
[1739080135443,0.03,207.45,207.39,5.36195207]
[1739080136131,0.03,207.45,207.38,13.41184853]
[1739080136132,0.03,207.45,207.38,18.7738006]
[1739080136937,0.03,207.45,207.38,5.36195207]
[1739080137451,0.03,207.45,207.39,5.36195207]
[1739080138348,0.03,207.45,207.4,5.36195207]
[1739080139042,0.03,207.45,207.39,5.36195207]
[1739080139242,0.03,207.45,207.38,5.36195207]
[1739080140044,5.39195207,207.45,207.38,5.36195207]
[1739080140438,8.76625207,207.45,207.38,5.36195207]
[1739080141129,8.76625207,207.45,207.36,5.36195207]
[1739080141130,5.36195207,207.43,207.36,5.36195207]
[1739080142749,5.36195207,207.44,207.37,5.36195207]
[1739080143051,7.03865207,207.45,207.38,5.36195207]
[1739080143355,10.41295207,207.45,207.38,5.36195207]
[1739080143658,5.051,207.45,207.38,5.36195207]
[1739080144251,1.6767,207.45,207.39,5.36195207]
[1739080144452,1.6767,207.45,207.4,5.36195207]
[1739080145539,5.051,207.45,207.39,5.36195207]
[1739080145842,10.41295207,207.45,207.38,5.36195207]
[1739080150056,10.41295207,207.45,207.39,5.36195207]
[1739080150236,3.4043,207.45,207.38,5.36195207]
[1739080151356,5.39195207,207.45,207.38,5.36195207]
[1739080151760,0.03,207.45,207.39,5.36195207]
[1739080151944,0.03,207.45,207.38,5.36195207]
[1739080151945,5.39195207,207.45,207.38,5.36195207]
[1739080153260,5.39195207,207.45,207.39,5.36195207]
[1739080153261,3.4043,207.45,207.39,5.36195207]
[1739080155158,3.4043,207.45,207.38,25.36195207]
[1739080155535,5.36195207,207.44,207.37,5.36195207]
[1739080156252,5.36195207,207.44,207.36,5.36195207]
[1739080156457,3.3746,207.43,207.36,5.36195207]
[1739080157856,3.3746,207.43,207.37,5.36195207]
[1739080158064,8.76635207,207.45,207.38,5.36195207]
[1739080159068,5.36195207,207.44,207.37,5.42495207]
[1739080160376,3.3746,207.43,207.37,5.42495207]
[1739080162174,5.36195207,207.44,207.37,0.063]
[1739080162375,8.73635207,207.44,207.37,0.063]
[1739080164577,5.36195207,207.43,207.37,0.063]
[1739080164781,6.88155207,207.42,207.37,0.063]
[1739080166083,10.25645207,207.42,207.37,0.063]
[1739080166582,5.36195207,207.41,207.37,0.063]
[1739080167477,8.73695207,207.41,207.37,0.063]
[1739080168066,5.36195207,207.39,207.37,0.063]
[1739080168659,5.36195207,207.38,207.37,0.063]
[1739080168859,5.61293207,207.38,207.37,0.063]
[1739080169086,20.0,207.35,207.32,0.063]
[1739080169381,5.36195207,207.33,207.32,0.063]
[1739080169789,8.73815207,207.33,207.32,0.063]
[1739080169957,8.98913207,207.33,207.32,0.063]
[1739080171283,9.98913207,207.33,207.32,0.063]
[1739080171484,11.54283207,207.33,207.32,0.063]
[1739080173459,24.9546806,207.33,207.32,0.063]
[1739080174289,11.54283207,207.33,207.32,0.063]
[1739080176183,24.44782853,207.31,207.3,0.063]
[1739080176387,20.25098,207.28,207.26,0.063]